[Event "*** Titled Tuesday Blitz"]
[Site "Chess.com"]
[Date "2018.12.04"]
[Round "4"]
[White "nailbeshirli"]
[Black "Korchmar_Vasiliy"]
[Result "1/2-1/2"]
[WhiteElo "2595"]
[BlackElo "2739"]
[TimeControl "180+2"]
[EndTime "13:50:57 PST"]
[Termination "Game drawn by agreement"]

1. e4 {[%clk 0:02:46]} 1... c5 {[%clk 0:03:00.8]} 2. Nf3 {[%clk 0:02:45.1]} 2...
d6 {[%clk 0:03:01.9]} 3. Nc3 {[%clk 0:02:44.8]} 3... Nc6 {[%clk 0:03:02.2]} 4.
Bc4 {[%clk 0:02:36.9]} 4... g6 {[%clk 0:02:58.8]} 5. O-O {[%clk 0:02:24.6]} 5...
Bg7 {[%clk 0:03:00]} 6. d3 {[%clk 0:02:24.1]} 6... e6 {[%clk 0:02:50.6]} 7. a3
{[%clk 0:02:18]} 7... Nge7 {[%clk 0:02:51.4]} 8. Bf4 {[%clk 0:02:11.2]} 8... a6
{[%clk 0:02:50.8]} 9. Qc1 {[%clk 0:02:07.2]} 9... h6 {[%clk 0:02:47.6]} 10. Ba2
{[%clk 0:02:06.4]} 10... b5 {[%clk 0:02:45]} 11. h3 {[%clk 0:02:01.8]} 11... Bb7
{[%clk 0:02:46]} 12. Ne2 {[%clk 0:01:55.3]} 12... g5 {[%clk 0:02:42.5]} 13. Be3
{[%clk 0:01:53.4]} 13... Ng6 {[%clk 0:02:43.2]} 14. Ng3 {[%clk 0:01:47.9]} 14...
Nce5 {[%clk 0:02:26.2]} 15. Nxe5 {[%clk 0:01:43.8]} 15... Bxe5 {[%clk
0:02:28.1]} 16. Nh5 {[%clk 0:01:38.6]} 16... Rc8 {[%clk 0:01:52.2]} 17. c3
{[%clk 0:01:25.2]} 17... d5 {[%clk 0:01:52.2]} 18. exd5 {[%clk 0:01:21.8]} 18...
Bxd5 {[%clk 0:01:54.1]} 19. Bxd5 {[%clk 0:01:23.2]} 19... Qxd5 {[%clk 0:01:56]}
20. f4 {[%clk 0:01:18.1]} 20... gxf4 {[%clk 0:01:46.5]} 21. Nxf4 {[%clk
0:01:19.1]} 21... Bxf4 {[%clk 0:01:44.4]} 22. Bxf4 {[%clk 0:01:15.6]} 22... Rg8
{[%clk 0:01:45.4]} 23. Rf2 {[%clk 0:01:11.1]} 23... Nh4 {[%clk 0:01:40.7]} 24.
Qc2 {[%clk 0:01:10.3]} 24... Rg6 {[%clk 0:01:37]} 25. a4 {[%clk 0:00:55.3]}
25... b4 {[%clk 0:01:33.3]} 26. cxb4 {[%clk 0:00:48.9]} 26... Qd4 {[%clk
0:01:34.1]} 27. g3 {[%clk 0:00:46.2]} 27... Nf5 {[%clk 0:01:26.1]} 28. Kh2
{[%clk 0:00:43.8]} 28... Qxb4 {[%clk 0:01:26.9]} 29. Qe2 {[%clk 0:00:37]} 29...
Kf8 {[%clk 0:01:23.2]} 30. Raf1 {[%clk 0:00:34.6]} 30... Kg8 {[%clk 0:01:24.7]}
31. Be5 {[%clk 0:00:30.5]} 31... Qxa4 {[%clk 0:01:22.8]} 32. g4 {[%clk
0:00:29.2]} 32... Nd4 {[%clk 0:01:20.7]} 33. Qe4 {[%clk 0:00:30.4]} 33... Qc6
{[%clk 0:01:19.1]} 34. Rxf7 {[%clk 0:00:29.5]} 34... Qxe4 {[%clk 0:01:14.9]} 35.
dxe4 {[%clk 0:00:30.5]} 35... Rg5 {[%clk 0:01:16.5]} 36. Bg3 {[%clk 0:00:31.1]}
36... h5 {[%clk 0:01:13.4]} 37. gxh5 {[%clk 0:00:30.7]} 37... Rxh5 {[%clk
0:01:15.3]} 38. R7f6 {[%clk 0:00:31.3]} 38... c4 {[%clk 0:01:00.6]} 39. Rg1
{[%clk 0:00:25.4]} 39... Ne2 {[%clk 0:00:56.2]} 40. Rg2 {[%clk 0:00:26.3]} 40...
Nxg3 {[%clk 0:00:58.1]} 41. Rxg3+ {[%clk 0:00:26.4]} 41... Kh8 {[%clk
0:00:59.5]} 42. Rxe6 {[%clk 0:00:26.3]} 42... Rb8 {[%clk 0:00:57.2]} 43. Rc6
{[%clk 0:00:25.3]} 43... Rxb2+ {[%clk 0:00:57.3]} 44. Kg1 {[%clk 0:00:24.8]}
44... Rc2 {[%clk 0:00:51.1]} 45. Rxa6 {[%clk 0:00:22.3]} 45... Rh4 {[%clk
0:00:42.8]} 46. Re3 {[%clk 0:00:22.6]} 46... Kg7 {[%clk 0:00:40.8]} 47. e5
{[%clk 0:00:19.8]} 47... Rd4 {[%clk 0:00:36.3]} 48. Rd6 {[%clk 0:00:21.3]} 48...
Rxd6 {[%clk 0:00:26.1]} 49. exd6 {[%clk 0:00:23.2]} 49... Rd2 {[%clk 0:00:27.8]}
50. Rc3 {[%clk 0:00:23.4]} 50... Rxd6 {[%clk 0:00:29.3]} 51. Rxc4 {[%clk
0:00:24.4]} 51... Rd2 {[%clk 0:00:30.9]} 1/2-1/2

[Event "*** Titled Tuesday Blitz"]
[Site "Chess.com"]
[Date "2018.12.04"]
[Round "4"]
[White "schoolmeester"]
[Black "kasparik_garik"]
[Result "1-0"]
[WhiteElo "2749"]
[BlackElo "2503"]
[TimeControl "180+2"]
[EndTime "13:50:58 PST"]
[Termination "schoolmeester won on time"]

1. e4 {[%clk 0:03:01.9]} 1... e6 {[%clk 0:02:57.5]} 2. Qe2 {[%clk 0:03:01]} 2...
c5 {[%clk 0:02:57.4]} 3. Nf3 {[%clk 0:03:01.1]} 3... Nc6 {[%clk 0:02:58.4]} 4.
c3 {[%clk 0:03:01.2]} 4... Nf6 {[%clk 0:02:55.2]} 5. g3 {[%clk 0:03:00.2]} 5...
d5 {[%clk 0:02:52.4]} 6. e5 {[%clk 0:02:56.3]} 6... Nd7 {[%clk 0:02:53.1]} 7. d4
{[%clk 0:02:56.7]} 7... a5 {[%clk 0:02:45.2]} 8. a4 {[%clk 0:02:55]} 8... b6
{[%clk 0:02:42.7]} 9. Na3 {[%clk 0:02:55]} 9... cxd4 {[%clk 0:02:43.6]} 10. cxd4
{[%clk 0:02:55.1]} 10... Bxa3 {[%clk 0:02:41.3]} 11. Rxa3 {[%clk 0:02:55.8]}
11... Ba6 {[%clk 0:02:42.2]} 12. Qd1 {[%clk 0:02:54.6]} 12... Bxf1 {[%clk
0:02:41.4]} 13. Kxf1 {[%clk 0:02:55.3]} 13... O-O {[%clk 0:02:35.8]} 14. Kg2
{[%clk 0:02:53.1]} 14... Qe7 {[%clk 0:02:18.2]} 15. Rc3 {[%clk 0:02:51.1]} 15...
Rfc8 {[%clk 0:02:16]} 16. Bg5 {[%clk 0:02:46.8]} 16... Qe8 {[%clk 0:02:14.6]}
17. Qc2 {[%clk 0:02:35.6]} 17... Nb4 {[%clk 0:02:14.7]} 18. Qe2 {[%clk
0:02:25.4]} 18... Nf8 {[%clk 0:02:07.7]} 19. Rhc1 {[%clk 0:02:22]} 19... Na2
{[%clk 0:02:03.4]} 20. Rxc8 {[%clk 0:02:20]} 20... Rxc8 {[%clk 0:02:04.3]} 21.
Rxc8 {[%clk 0:02:19.8]} 21... Qxc8 {[%clk 0:02:05.2]} 22. Qb5 {[%clk 0:02:19.8]}
22... h6 {[%clk 0:01:14.8]} 23. Bd2 {[%clk 0:02:11.9]} 23... Nd7 {[%clk
0:01:08.5]} 24. b3 {[%clk 0:02:02.4]} 24... Qc7 {[%clk 0:01:04.8]} 25. Ng1
{[%clk 0:01:58.5]} 25... Nf8 {[%clk 0:00:52.7]} 26. Qd3 {[%clk 0:01:54]} 26...
Ng6 {[%clk 0:00:45.9]} 27. Ne2 {[%clk 0:01:50.6]} 27... Ne7 {[%clk 0:00:46.2]}
28. Qb1 {[%clk 0:01:40.7]} 28... Nb4 {[%clk 0:00:46.6]} 29. Bxb4 {[%clk
0:01:41]} 29... axb4 {[%clk 0:00:47.6]} 30. Qd3 {[%clk 0:01:41.7]} 30... Nf5
{[%clk 0:00:38]} 31. Qd2 {[%clk 0:01:36.7]} 31... h5 {[%clk 0:00:35.4]} 32. h3
{[%clk 0:01:36.9]} 32... Qc6 {[%clk 0:00:29.4]} 33. g4 {[%clk 0:01:33.1]} 33...
hxg4 {[%clk 0:00:30]} 34. hxg4 {[%clk 0:01:33.7]} 34... Nh4+ {[%clk 0:00:31]}
35. Kg3 {[%clk 0:01:34.3]} 35... Ng6 {[%clk 0:00:32]} 36. f3 {[%clk 0:01:33.8]}
36... f6 {[%clk 0:00:27.8]} 37. f4 {[%clk 0:01:20.3]} 37... Ne7 {[%clk
0:00:22.5]} 38. Kf2 {[%clk 0:01:17.7]} 38... fxe5 {[%clk 0:00:22.7]} 39. fxe5
{[%clk 0:01:17.5]} 39... Ng6 {[%clk 0:00:21.5]} 40. Ke3 {[%clk 0:01:15.7]} 40...
Nh4 {[%clk 0:00:16.8]} 41. Kd3 {[%clk 0:01:11.9]} 41... Qc7 {[%clk 0:00:11.8]}
42. Qxb4 {[%clk 0:01:11.4]} 42... Nf3 {[%clk 0:00:11]} 43. Qc3 {[%clk
0:01:09.4]} 43... Qf7 {[%clk 0:00:11.9]} 44. Ke3 {[%clk 0:00:58.7]} 44... Ng5
{[%clk 0:00:12.3]} 45. Qc8+ {[%clk 0:00:55.6]} 45... Kh7 {[%clk 0:00:12.9]} 46.
Nf4 {[%clk 0:00:56.1]} 46... b5 {[%clk 0:00:05.9]} 47. a5 {[%clk 0:00:50.4]}
47... Qa7 {[%clk 0:00:06.1]} 48. b4 {[%clk 0:00:50.9]} 1-0

[Event "*** Titled Tuesday Blitz"]
[Site "Chess.com"]
[Date "2018.12.04"]
[Round "4"]
[White "eCztery"]
[Black "Abdodi"]
[Result "1-0"]
[WhiteElo "2316"]
[BlackElo "2216"]
[TimeControl "180+2"]
[EndTime "13:51:05 PST"]
[Termination "eCztery won by resignation"]

1. e4 {[%clk 0:03:01.9]} 1... c5 {[%clk 0:02:54.5]} 2. Nf3 {[%clk 0:03:02]} 2...
e6 {[%clk 0:02:54.8]} 3. d4 {[%clk 0:03:03.2]} 3... cxd4 {[%clk 0:02:55.8]} 4.
Nxd4 {[%clk 0:03:05.1]} 4... Qc7 {[%clk 0:02:57.3]} 5. Nb5 {[%clk 0:02:58]} 5...
Qe5 {[%clk 0:02:28.1]} 6. N1c3 {[%clk 0:02:47.7]} 6... Nc6 {[%clk 0:02:16.2]} 7.
Be3 {[%clk 0:02:29]} 7... Nf6 {[%clk 0:02:13.8]} 8. Qd2 {[%clk 0:02:10.1]} 8...
Bb4 {[%clk 0:02:11.5]} 9. Bf4 {[%clk 0:02:03.4]} 9... Nxe4 {[%clk 0:02:04.8]}
10. Bxe5 {[%clk 0:02:01.8]} 10... Nxd2 {[%clk 0:02:02.5]} 11. Bxg7 {[%clk
0:01:51.8]} 11... Rg8 {[%clk 0:01:59.9]} 12. Nc7+ {[%clk 0:01:44.5]} 12... Kd8
{[%clk 0:01:59.9]} 13. Nxa8 {[%clk 0:01:46.4]} 13... Rxg7 {[%clk 0:02:00.2]} 14.
Kxd2 {[%clk 0:01:46.3]} 14... d5 {[%clk 0:01:49.8]} 15. a3 {[%clk 0:01:43.9]}
15... Bc5 {[%clk 0:01:36.2]} 16. f3 {[%clk 0:01:32.6]} 16... b6 {[%clk
0:01:25.4]} 17. Nb5 {[%clk 0:01:32.6]} 17... Bb7 {[%clk 0:01:24.4]} 18. Nac7
{[%clk 0:01:32.6]} 18... a6 {[%clk 0:01:25.1]} 19. b4 {[%clk 0:01:27.9]} 19...
Be7 {[%clk 0:01:19.6]} 20. Nxa6 {[%clk 0:00:57.7]} 20... Bg5+ {[%clk 0:01:12.9]}
21. Kd1 {[%clk 0:00:45.9]} 21... Bxa6 {[%clk 0:01:13.4]} 22. c4 {[%clk
0:00:30.9]} 22... dxc4 {[%clk 0:00:57.8]} 23. Bxc4 {[%clk 0:00:32.8]} 23... Bf6
{[%clk 0:00:58]} 24. Ra2 {[%clk 0:00:33.4]} 24... Ne5 {[%clk 0:00:50.5]} 25.
Rd2+ {[%clk 0:00:33.2]} 25... Ke7 {[%clk 0:00:51.3]} 26. Bf1 {[%clk 0:00:30.8]}
26... Bg5 {[%clk 0:00:48.3]} 27. Rc2 {[%clk 0:00:20.6]} 27... Be3 {[%clk
0:00:33.7]} 28. Rc7+ {[%clk 0:00:20.9]} 28... Kf6 {[%clk 0:00:34.8]} 29. Nd6
{[%clk 0:00:21.3]} 29... Bxf1 {[%clk 0:00:31.7]} 30. Rxf1 {[%clk 0:00:23.2]}
30... Rxg2 {[%clk 0:00:32.3]} 31. Ne4+ {[%clk 0:00:20.8]} 31... Kg6 {[%clk
0:00:30.8]} 32. f4 {[%clk 0:00:21.7]} 32... Nd3 {[%clk 0:00:28.8]} 33. Rc3
{[%clk 0:00:22.6]} 33... Nb2+ {[%clk 0:00:20.5]} 34. Ke1 {[%clk 0:00:24]} 34...
Bd4 {[%clk 0:00:21.5]} 35. Rg3+ {[%clk 0:00:24.1]} 35... Rxg3 {[%clk 0:00:21.5]}
36. hxg3 {[%clk 0:00:26]} 36... Kf5 {[%clk 0:00:21.7]} 37. Nd2 {[%clk
0:00:26.2]} 37... Kg4 {[%clk 0:00:20.3]} 38. Ke2 {[%clk 0:00:25.1]} 38... Kxg3
{[%clk 0:00:20.6]} 39. Nf3 {[%clk 0:00:25.3]} 39... Bf6 {[%clk 0:00:21]} 40. Ng5
{[%clk 0:00:26]} 40... h5 {[%clk 0:00:19.7]} 41. Rg1+ {[%clk 0:00:23]} 41...
Kxf4 {[%clk 0:00:20.1]} 42. Nxf7 {[%clk 0:00:23.1]} 42... h4 {[%clk 0:00:21.1]}
43. Rf1+ {[%clk 0:00:24.4]} 43... Kg3 {[%clk 0:00:20.9]} 44. Rxf6 {[%clk
0:00:26.3]} 44... h3 {[%clk 0:00:22.8]} 45. Rg6+ {[%clk 0:00:27.6]} 45... Kh4
{[%clk 0:00:22.2]} 46. Ng5 {[%clk 0:00:28.6]} 46... Kh5 {[%clk 0:00:22.8]} 47.
Rg8 {[%clk 0:00:29.7]} 47... h2 {[%clk 0:00:24]} 48. Nf3 {[%clk 0:00:29.9]}
48... h1=Q {[%clk 0:00:21.1]} 49. Rh8+ {[%clk 0:00:30.9]} 49... Kg4 {[%clk
0:00:22.7]} 50. Rxh1 {[%clk 0:00:32.8]} 50... Nc4 {[%clk 0:00:23.4]} 51. Rh4+
{[%clk 0:00:33.9]} 1-0

[Event "*** Titled Tuesday Blitz"]
[Site "Chess.com"]
[Date "2018.12.04"]
[Round "4"]
[White "TregubovP"]
[Black "severomorskij"]
[Result "0-1"]
[WhiteElo "2577"]
[BlackElo "2743"]
[TimeControl "180+2"]
[EndTime "13:51:11 PST"]
[Termination "severomorskij won by resignation"]

1. d4 {[%clk 0:03:01.6]} 1... Nf6 {[%clk 0:03:00.8]} 2. c4 {[%clk 0:03:02.5]}
2... e6 {[%clk 0:03:02.1]} 3. Nc3 {[%clk 0:03:02.9]} 3... Bb4 {[%clk 0:03:02.3]}
4. e3 {[%clk 0:03:04]} 4... O-O {[%clk 0:02:59]} 5. Bd3 {[%clk 0:03:04.5]} 5...
d5 {[%clk 0:02:59.6]} 6. Ne2 {[%clk 0:03:03.1]} 6... c5 {[%clk 0:03:00]} 7. cxd5
{[%clk 0:03:03.2]} 7... cxd4 {[%clk 0:02:51.7]} 8. exd4 {[%clk 0:03:03.4]} 8...
Nxd5 {[%clk 0:02:52.8]} 9. O-O {[%clk 0:03:04.7]} 9... Nc6 {[%clk 0:02:53.5]}
10. Nxd5 {[%clk 0:03:05.8]} 10... Qxd5 {[%clk 0:02:53.8]} 11. Qc2 {[%clk
0:03:04.8]} 11... h6 {[%clk 0:02:47.3]} 12. a3 {[%clk 0:03:03.6]} 12... Be7
{[%clk 0:02:47.1]} 13. Rd1 {[%clk 0:02:53]} 13... Rd8 {[%clk 0:02:12.9]} 14. Be4
{[%clk 0:02:43.9]} 14... Qd6 {[%clk 0:02:06.2]} 15. Bf4 {[%clk 0:02:42.5]} 15...
Qd7 {[%clk 0:02:07.4]} 16. Rac1 {[%clk 0:02:35.7]} 16... Qe8 {[%clk 0:01:59.3]}
17. Bc7 {[%clk 0:02:24.5]} 17... Rd7 {[%clk 0:01:58]} 18. Bg3 {[%clk 0:02:25.3]}
18... Bf6 {[%clk 0:01:49.1]} 19. Qc4 {[%clk 0:01:38.3]} 19... g6 {[%clk
0:01:32.2]} 20. Bxc6 {[%clk 0:01:33.1]} 20... bxc6 {[%clk 0:01:32.8]} 21. Be5
{[%clk 0:01:33.5]} 21... Bg5 {[%clk 0:01:25.8]} 22. Bf4 {[%clk 0:01:29.6]} 22...
Qd8 {[%clk 0:01:05.4]} 23. Bxg5 {[%clk 0:01:27.7]} 23... Qxg5 {[%clk 0:01:06.1]}
24. Nc3 {[%clk 0:01:27.8]} 24... Kg7 {[%clk 0:00:51.3]} 25. Ne4 {[%clk
0:01:26.4]} 25... Qd5 {[%clk 0:00:52.3]} 26. Nc5 {[%clk 0:01:26.7]} 26... Rd8
{[%clk 0:00:51.4]} 27. Qc3 {[%clk 0:01:24.1]} 27... a5 {[%clk 0:00:49.4]} 28.
Rd2 {[%clk 0:00:59.7]} 28... e5 {[%clk 0:00:32.8]} 29. Rcd1 {[%clk 0:01:00.7]}
29... e4 {[%clk 0:00:31.1]} 30. Qe3 {[%clk 0:01:01.6]} 30... Bf5 {[%clk
0:00:26.9]} 31. h3 {[%clk 0:01:02.6]} 31... h5 {[%clk 0:00:27.8]} 32. Rc1 {[%clk
0:00:54.7]} 32... Rab8 {[%clk 0:00:26.8]} 33. Rc3 {[%clk 0:00:44]} 33... Rb5
{[%clk 0:00:21.3]} 34. a4 {[%clk 0:00:34.2]} 34... Rb4 {[%clk 0:00:20.6]} 35. b3
{[%clk 0:00:35.2]} 35... Rxd4 {[%clk 0:00:18.8]} 36. Rxd4 {[%clk 0:00:33.8]}
36... Qxd4 {[%clk 0:00:20.2]} 37. Qxd4+ {[%clk 0:00:34.8]} 37... Rxd4 {[%clk
0:00:22.1]} 38. Nb7 {[%clk 0:00:34.7]} 38... Rd1+ {[%clk 0:00:20.6]} 39. Kh2
{[%clk 0:00:35.1]} 39... Rd2 {[%clk 0:00:21.5]} 40. Nxa5 {[%clk 0:00:31.4]}
40... Rxf2 {[%clk 0:00:22.2]} 41. Nxc6 {[%clk 0:00:32.9]} 41... Ra2 {[%clk
0:00:14.6]} 42. Nd4 {[%clk 0:00:32.1]} 42... Kf6 {[%clk 0:00:11.7]} 43. h4
{[%clk 0:00:32.5]} 43... Ke5 {[%clk 0:00:12.6]} 44. Nc2 {[%clk 0:00:25]} 44...
Be6 {[%clk 0:00:04.9]} 45. Kg3 {[%clk 0:00:21.1]} 45... f5 {[%clk 0:00:06.1]}
46. Kf2 {[%clk 0:00:19.9]} 46... f4 {[%clk 0:00:07.1]} 47. Rc5+ {[%clk
0:00:11.3]} 47... Kd6 {[%clk 0:00:07.7]} 48. Rb5 {[%clk 0:00:12.2]} 48... Rxc2+
{[%clk 0:00:07.9]} 49. Ke1 {[%clk 0:00:13.3]} 49... e3 {[%clk 0:00:09]} 0-1

[Event "*** Titled Tuesday Blitz"]
[Site "Chess.com"]
[Date "2018.12.04"]
[Round "4"]
[White "silverback96"]
[Black "leclash"]
[Result "1-0"]
[WhiteElo "2144"]
[BlackElo "2352"]
[TimeControl "180+2"]
[EndTime "13:51:13 PST"]
[Termination "silverback96 won by resignation"]

1. d4 {[%clk 0:03:01.9]} 1... d5 {[%clk 0:02:59.9]} 2. c4 {[%clk 0:03:03.2]}
2... e6 {[%clk 0:03:00.8]} 3. Nf3 {[%clk 0:03:03.7]} 3... c6 {[%clk 0:03:01.8]}
4. g3 {[%clk 0:03:05]} 4... Nf6 {[%clk 0:03:02.7]} 5. Bg2 {[%clk 0:03:06.9]}
5... dxc4 {[%clk 0:03:02.2]} 6. Ne5 {[%clk 0:03:07.6]} 6... c5 {[%clk
0:02:33.7]} 7. Qa4+ {[%clk 0:02:10]} 7... Nfd7 {[%clk 0:02:21.9]} 8. O-O {[%clk
0:01:44.3]} 8... cxd4 {[%clk 0:02:12.3]} 9. Rd1 {[%clk 0:01:36.9]} 9... Nc6
{[%clk 0:01:39]} 10. Nxc6 {[%clk 0:01:36.3]} 10... bxc6 {[%clk 0:01:40.9]} 11.
Qxc6 {[%clk 0:01:31.6]} 11... Rb8 {[%clk 0:01:36.6]} 12. Qxc4 {[%clk 0:01:30.6]}
12... e5 {[%clk 0:01:22.5]} 13. Bd5 {[%clk 0:00:55.9]} 13... Qf6 {[%clk
0:01:15.6]} 14. Nd2 {[%clk 0:00:43.9]} 14... Nb6 {[%clk 0:00:54.5]} 15. Bc6+
{[%clk 0:00:41.5]} 15... Bd7 {[%clk 0:00:55]} 16. Bxd7+ {[%clk 0:00:41.8]} 16...
Nxd7 {[%clk 0:00:56.9]} 17. Ne4 {[%clk 0:00:43]} 17... Qe6 {[%clk 0:00:48]} 18.
Qxe6+ {[%clk 0:00:34.4]} 18... fxe6 {[%clk 0:00:49.9]} 19. b3 {[%clk 0:00:35]}
19... Nc5 {[%clk 0:00:37]} 20. Nxc5 {[%clk 0:00:31.1]} 20... Bxc5 {[%clk
0:00:38.9]} 21. Bd2 {[%clk 0:00:28.8]} 21... Kf7 {[%clk 0:00:38.8]} 22. Rac1
{[%clk 0:00:29.5]} 22... Rhc8 {[%clk 0:00:39]} 23. Rc4 {[%clk 0:00:30.4]} 23...
Bb6 {[%clk 0:00:34.8]} 24. Rdc1 {[%clk 0:00:27.7]} 24... Rxc4 {[%clk 0:00:35.4]}
25. Rxc4 {[%clk 0:00:29.6]} 25... Ke7 {[%clk 0:00:34.8]} 26. Bb4+ {[%clk
0:00:30]} 26... Kd7 {[%clk 0:00:35.9]} 27. Bc5 {[%clk 0:00:24.1]} 27... Rc8
{[%clk 0:00:29.7]} 28. Bxb6 {[%clk 0:00:25.1]} 28... Rxc4 {[%clk 0:00:30.3]} 29.
bxc4 {[%clk 0:00:27]} 29... axb6 {[%clk 0:00:31.9]} 30. Kg2 {[%clk 0:00:18.2]}
30... Kc6 {[%clk 0:00:32.8]} 31. Kf3 {[%clk 0:00:19.4]} 31... Kc5 {[%clk
0:00:23.2]} 32. Ke4 {[%clk 0:00:21]} 32... Kxc4 {[%clk 0:00:24.5]} 33. Kxe5
{[%clk 0:00:22.4]} 33... Kc3 {[%clk 0:00:16.6]} 34. a4 {[%clk 0:00:10.2]} 34...
Kb4 {[%clk 0:00:15.6]} 35. Kxd4 {[%clk 0:00:08.7]} 35... Kxa4 {[%clk 0:00:16.7]}
36. Kc3 {[%clk 0:00:10]} 36... b5 {[%clk 0:00:16]} 37. e4 {[%clk 0:00:08.8]}
37... Ka3 {[%clk 0:00:17]} 38. Kc2 {[%clk 0:00:08.8]} 38... b4 {[%clk
0:00:16.9]} 39. Kb1 {[%clk 0:00:09.3]} 39... Kb3 {[%clk 0:00:18.3]} 40. f4
{[%clk 0:00:09.4]} 40... Kc3 {[%clk 0:00:17.3]} 41. e5 {[%clk 0:00:09.4]} 41...
b3 {[%clk 0:00:14.2]} 42. f5 {[%clk 0:00:09.8]} 1-0

[Event "*** Titled Tuesday Blitz"]
[Site "Chess.com"]
[Date "2018.12.04"]
[Round "4"]
[White "Berardino"]
[Black "capatl"]
[Result "0-1"]
[WhiteElo "2407"]
[BlackElo "2562"]
[TimeControl "180+2"]
[EndTime "13:51:14 PST"]
[Termination "capatl won by resignation"]

1. d4 {[%clk 0:03:01.9]} 1... Nf6 {[%clk 0:02:59.2]} 2. c4 {[%clk 0:03:02.9]}
2... e6 {[%clk 0:03:00.3]} 3. Nc3 {[%clk 0:03:03.6]} 3... d5 {[%clk 0:03:00.2]}
4. cxd5 {[%clk 0:03:04]} 4... exd5 {[%clk 0:03:00.9]} 5. Bg5 {[%clk 0:03:04.5]}
5... c6 {[%clk 0:03:02]} 6. e3 {[%clk 0:03:05.4]} 6... Be7 {[%clk 0:03:03]} 7.
Bd3 {[%clk 0:03:05.7]} 7... Nbd7 {[%clk 0:03:04.1]} 8. Qc2 {[%clk 0:03:06]} 8...
Nf8 {[%clk 0:03:05.2]} 9. Nge2 {[%clk 0:03:05.8]} 9... Ne6 {[%clk 0:03:04.2]}
10. Bh4 {[%clk 0:02:55.4]} 10... g6 {[%clk 0:03:05]} 11. O-O {[%clk 0:02:55.9]}
11... Ng7 {[%clk 0:03:06]} 12. f3 {[%clk 0:02:55.6]} 12... O-O {[%clk 0:02:46]}
13. Rad1 {[%clk 0:02:38.4]} 13... Nfh5 {[%clk 0:01:51.9]} 14. Bxe7 {[%clk
0:02:18.8]} 14... Qxe7 {[%clk 0:01:53.8]} 15. e4 {[%clk 0:02:20.7]} 15... dxe4
{[%clk 0:01:43.2]} 16. fxe4 {[%clk 0:02:22.6]} 16... f5 {[%clk 0:01:40.2]} 17.
e5 {[%clk 0:01:52.9]} 17... Be6 {[%clk 0:01:40.3]} 18. b3 {[%clk 0:01:35.4]}
18... Rad8 {[%clk 0:01:38.8]} 19. Bc4 {[%clk 0:01:30.9]} 19... Qb4 {[%clk
0:01:24.9]} 20. Bxe6+ {[%clk 0:00:43.4]} 20... Nxe6 {[%clk 0:01:25.2]} 21. Kh1
{[%clk 0:00:45.3]} 21... Nxd4 {[%clk 0:01:17.8]} 22. Nxd4 {[%clk 0:00:46.5]}
22... Rxd4 {[%clk 0:01:19.4]} 23. Rxd4 {[%clk 0:00:48.1]} 23... Qxd4 {[%clk
0:01:20.4]} 24. Re1 {[%clk 0:00:43.4]} 24... Qh4 {[%clk 0:01:17.8]} 25. Qd2
{[%clk 0:00:38]} 25... Re8 {[%clk 0:01:14.3]} 26. Kg1 {[%clk 0:00:34.7]} 26...
Qe7 {[%clk 0:00:59.5]} 27. e6 {[%clk 0:00:32.7]} 27... Qc5+ {[%clk 0:00:55.9]}
28. Kh1 {[%clk 0:00:32.1]} 28... Nf4 {[%clk 0:00:52.6]} 29. Qxf4 {[%clk
0:00:21.6]} 29... Qxc3 {[%clk 0:00:53.4]} 30. Rd1 {[%clk 0:00:21.6]} 30... Rxe6
{[%clk 0:00:48]} 31. Rd8+ {[%clk 0:00:18.4]} 31... Kf7 {[%clk 0:00:40.9]} 32. h4
{[%clk 0:00:15.3]} 32... Qe1+ {[%clk 0:00:40.9]} 33. Kh2 {[%clk 0:00:16.2]}
33... Qe5 {[%clk 0:00:41.1]} 34. Rd7+ {[%clk 0:00:14.9]} 34... Kf6 {[%clk
0:00:28.9]} 35. Qxe5+ {[%clk 0:00:16.8]} 35... Rxe5 {[%clk 0:00:28.2]} 36. Rxb7
{[%clk 0:00:18.7]} 36... Re7 {[%clk 0:00:28.5]} 37. Rb8 {[%clk 0:00:19.3]} 37...
Re2 {[%clk 0:00:26.6]} 38. a4 {[%clk 0:00:19.3]} 38... Re4 {[%clk 0:00:26.5]}
39. Kh3 {[%clk 0:00:18.7]} 39... a5 {[%clk 0:00:27.2]} 40. Rb7 {[%clk
0:00:19.4]} 40... Re3+ {[%clk 0:00:27.8]} 41. Kh2 {[%clk 0:00:20.4]} 41... Re4
{[%clk 0:00:28.9]} 42. Rb6 {[%clk 0:00:21.5]} 42... Rxh4+ {[%clk 0:00:28.7]} 43.
Kg3 {[%clk 0:00:23]} 43... Rg4+ {[%clk 0:00:29.5]} 44. Kf3 {[%clk 0:00:23.7]}
44... Kg5 {[%clk 0:00:28.1]} 45. Rxc6 {[%clk 0:00:23.7]} 45... Rb4 {[%clk
0:00:29]} 46. Rc3 {[%clk 0:00:25]} 46... h5 {[%clk 0:00:25.1]} 47. g3 {[%clk
0:00:26.2]} 47... h4 {[%clk 0:00:25.6]} 48. gxh4+ {[%clk 0:00:27.1]} 48... Rxh4
{[%clk 0:00:25.8]} 49. Rc5 {[%clk 0:00:26.1]} 49... Rh3+ {[%clk 0:00:26.8]} 50.
Kg2 {[%clk 0:00:26.4]} 50... Rxb3 {[%clk 0:00:28.7]} 51. Rxa5 {[%clk 0:00:27.9]}
51... Ra3 {[%clk 0:00:30]} 52. Ra6 {[%clk 0:00:28.8]} 52... Kh5 {[%clk
0:00:30.6]} 53. a5 {[%clk 0:00:29.4]} 53... g5 {[%clk 0:00:31.1]} 54. Ra8 {[%clk
0:00:29.7]} 54... Kg4 {[%clk 0:00:31.7]} 55. a6 {[%clk 0:00:31.6]} 55... f4
{[%clk 0:00:32.9]} 56. a7 {[%clk 0:00:31.7]} 56... Ra2+ {[%clk 0:00:34.1]} 57.
Kf1 {[%clk 0:00:33.1]} 57... Kf3 {[%clk 0:00:35.4]} 58. Ke1 {[%clk 0:00:33.6]}
58... g4 {[%clk 0:00:36.7]} 59. Kd1 {[%clk 0:00:30.2]} 59... g3 {[%clk
0:00:37.7]} 60. Ke1 {[%clk 0:00:30.8]} 60... g2 {[%clk 0:00:38.2]} 0-1